bitfinex-derivatives/quotes_SOLF0:USTF0_20240818
["timestamp","ask_amount","ask_price","bid_price","bid_amount"]
[1723972219098,3.57040532,142.08,142.05,0.0518682]
[1723972219806,7.55040532,142.08,142.05,0.0518682]
[1723972221607,3.5189,142.07,142.05,0.0518682]
[1723972221811,11.63170532,142.08,142.05,0.0518682]
[1723972223811,7.6,142.06,141.89,226.0]
[1723972224109,7.6,142.06,141.99,7.6]
[1723972224307,3.5197,142.04,141.99,11.1207]
[1723972224608,7.4997,142.04,141.99,11.1207]
[1723972225014,3.64106167,142.03,142.0,0.04802391]
[1723972225912,0.04887735,142.03,142.0,0.04802391]
[1723972226107,0.04887735,142.03,142.01,7.6]
[1723972227210,0.04887735,142.03,142.01,11.1203]
[1723972227914,3.63246813,142.03,142.0,0.04802391]
[1723972228115,0.04887735,142.03,142.0,0.04802391]
[1723972228417,3.57930226,142.03,142.0,0.04802391]
[1723972228913,0.04887735,142.03,142.0,3.56852391]
[1723972230010,3.56867735,142.03,142.0,3.56852391]
[1723972230909,3.56867735,142.03,142.0,11.16852391]
[1723972231109,0.04887735,142.03,142.0,11.16852391]
[1723972234118,3.56877735,142.03,142.0,11.16852391]
[1723972234918,0.04887735,142.03,142.0,11.16852391]
[1723972240921,3.56877735,142.03,142.0,11.16852391]
[1723972241923,0.04887735,142.03,142.0,11.16852391]
[1723972244822,0.04887735,142.03,142.01,3.5203]
[1723972245116,0.04887735,142.03,142.01,11.1203]
[1723972259831,0.04887735,142.03,142.02,3.5201]
[1723972260031,0.04887735,142.03,142.01,7.6]
[1723972260437,0.04887735,142.03,142.01,11.1202]
[1723972260941,0.04887735,142.03,142.01,3.5202]
[1723972269751,0.04887735,142.03,142.0,3.56852391]
[1723972270957,3.56877735,142.03,142.0,0.04802391]
[1723972272250,3.5202,142.02,142.0,0.04802391]
[1723972273150,0.04887735,142.03,142.0,0.04802391]
[1723972273151,3.56887735,142.03,142.0,3.56862391]
[1723972276861,3.57306849,142.03,142.0,0.04802391]
[1723972277758,3.5201,142.02,142.0,0.04802391]
[1723972278060,3.57306849,142.03,142.0,0.04802391]
[1723972278252,3.5203,142.01,142.0,0.04802391]
[1723972279758,3.5202,142.02,142.0,0.04802391]
[1723972280055,3.57306849,142.03,142.0,0.04802391]
[1723972280260,3.56887735,142.03,142.0,0.04802391]
[1723972280648,0.04887735,142.03,142.0,0.04802391]
[1723972281251,3.56877735,142.03,142.0,0.04802391]
[1723972287667,0.04887735,142.03,142.0,7.64802391]
[1723972288955,0.04887735,142.03,142.01,11.81325514]
[1723972289160,0.04887735,142.03,142.01,3.5203]
[1723972289358,0.04887735,142.03,142.02,3.5201]
[1723972289558,3.5191,142.06,142.02,19.41183794]
[1723972289761,3.5191,142.06,142.02,11.1201]
[1723972290568,0.05185359,142.05,142.02,11.1201]
[1723972292263,0.05185359,142.05,142.03,7.6]
[1723972292470,0.05185359,142.05,142.04,7.6]
[1723972292861,0.05185359,142.05,142.04,11.1196]
[1723972296871,4.73077669,142.11,142.07,3.5187]
[1723972296872,7.40457669,142.11,142.07,3.5187]
[1723972297071,3.96,142.11,142.07,3.5187]
[1723972297666,10.97434093,142.11,142.07,3.5187]
[1723972297973,0.0495439,142.1,142.08,0.05340181]
[1723972299368,0.0495439,142.1,142.08,7.65340181]
[1723972300265,0.0495439,142.1,142.09,3.5184]
[1723972301878,0.0495439,142.1,142.09,11.1184]
[1723972302064,3.5173,142.14,142.1,3.5181]
[1723972302965,3.96,142.15,142.1,7.6]
[1723972303271,76.14635605,142.19,142.12,7.6]
[1723972303272,3.96,142.17,142.12,7.6]
[1723972303471,3.96,142.17,142.13,3.56980581]
[1723972304178,3.96,142.17,142.14,3.5169]
[1723972305565,3.5163,142.18,142.14,3.5169]
[1723972305772,0.25862822,142.17,142.14,3.5169]
[1723972306480,0.25862822,142.17,142.13,0.05260581]
[1723972306676,74.81535605,142.19,142.13,0.05260581]
[1723972306876,0.25862119,142.18,142.13,0.05260581]
[1723972307469,0.25862119,142.18,142.14,3.517]
[1723972307669,0.25862119,142.18,142.13,0.05260581]
[1723972308578,0.25862119,142.18,142.13,3.56990581]
[1723972309680,0.25862119,142.18,142.14,3.517]
[1723972309873,0.25862119,142.18,142.14,11.117]
[1723972311477,0.25862119,142.18,142.15,3.5168]
[1723972312570,0.25862119,142.18,142.16,7.6]
[1723972312975,74.81535605,142.19,142.16,7.6]
[1723972313177,74.81535605,142.19,142.16,7.65284751]
[1723972313677,74.81535605,142.19,142.16,11.16944751]
[1723972314773,74.81535605,142.19,142.16,7.65284751]
[1723972315483,3.46517068,142.2,142.16,7.65284751]
[1723972315783,0.25860247,142.19,142.16,7.65284751]
[1723972316482,3.46517068,142.2,142.16,7.65284751]
[1723972317182,11.56,142.21,142.16,7.65284751]
[1723972317372,0.25859724,142.2,142.16,7.65284751]
[1723972317572,3.45247959,142.19,142.16,7.65284751]
[1723972317779,11.56,142.21,142.16,7.65284751]
[1723972317978,0.25859752,142.2,142.16,7.65284751]
[1723972318178,3.46408752,142.19,142.16,7.65284751]
[1723972318579,11.56,142.21,142.16,7.65284751]
[1723972318781,0.25859724,142.2,142.16,7.65284751]
[1723972319175,0.25859724,142.2,142.16,0.05284751]
[1723972319383,7.85859724,142.2,142.16,0.05284751]
[1723972319583,7.6,142.2,142.16,0.05284751]
[1723972320481,0.25860864,142.19,142.16,0.05284751]
[1723972320985,7.6,142.2,142.16,0.05284751]
[1723972321184,0.25860994,142.19,142.16,0.05284751]
[1723972321781,7.6,142.18,142.12,7.6]
[1723972321983,7.6,142.18,142.13,7.6]
[1723972322583,7.6,142.18,142.1,3.96]
[1723972322787,0.04639562,142.15,142.13,7.65237295]
[1723972325590,0.04639562,142.15,142.13,0.05237295]
[1723972325791,0.04639562,142.15,142.13,7.65237295]
[1723972326900,0.04639562,142.15,142.13,0.05237295]
[1723972327988,0.04639562,142.15,142.13,7.65237295]
[1723972331585,0.04639562,142.15,142.13,0.05237295]
[1723972339395,0.04639562,142.15,142.13,7.65237295]
[1723972342199,4.0,142.19,142.14,7.6]
[1723972342503,0.25861664,142.18,142.14,7.6]
[1723972342795,7.6,142.21,142.14,7.6]
[1723972343004,0.25861001,142.2,142.14,7.6]
[1723972343205,0.25861001,142.2,142.16,0.04906018]
[1723972348106,7.6,142.19,142.16,0.04906018]
[1723972354201,7.6,142.17,142.08,3.9939]
[1723972354507,7.6,142.15,142.09,7.6]
[1723972354702,7.6,142.14,142.08,11.5939]
[1723972355311,0.04682053,142.12,142.1,0.05018394]
[1723972363027,3.5179,142.11,142.1,0.05018394]
[1723972368030,3.56452053,142.12,142.1,0.05018394]
[1723972370032,3.56452053,142.12,142.1,7.65018394]
[1723972370033,0.04682053,142.12,142.1,7.65018394]
[1723972373443,3.56442053,142.12,142.1,7.65018394]
[1723972373632,0.04682053,142.12,142.1,0.05018394]
[1723972374138,3.5179,142.11,142.1,0.05018394]
[1723972378444,3.56452053,142.12,142.1,0.05018394]
[1723972382348,0.04682053,142.12,142.1,0.05018394]
[1723972385640,0.04682053,142.12,142.1,11.16808394]
[1723972386149,0.04682053,142.12,142.1,0.05018394]
[1723972399047,3.56442053,142.12,142.1,0.05018394]
[1723972403555,3.56442053,142.12,142.1,7.65018394]
[1723972403753,0.04682053,142.12,142.1,7.65018394]
[1723972404355,0.04682053,142.12,142.11,7.6]
[1723972405264,0.04682053,142.12,142.11,11.1179]
[1723972406560,0.04682053,142.12,142.11,7.6]
[1723972408662,0.04682053,142.12,142.1,3.56818394]
[1723972409359,3.56442053,142.12,142.1,0.05018394]
[1723972412265,0.04682053,142.12,142.1,7.65018394]
[1723972412464,0.04682053,142.12,142.1,0.05018394]
[1723972412664,0.04682053,142.12,142.1,7.65018394]
[1723972413361,0.04682053,142.12,142.1,0.05018394]
[1723972416169,3.56442053,142.12,142.1,0.05018394]
[1723972416768,0.04682053,142.12,142.1,0.05018394]
[1723972418769,3.56452053,142.12,142.1,0.05018394]
[1723972419865,0.04682053,142.12,142.1,0.05018394]
[1723972420070,0.04682053,142.12,142.1,7.65018394]
[1723972420468,0.04682053,142.12,142.1,11.16828394]
[1723972424264,0.04682053,142.12,142.11,11.1179]
[1723972439278,3.5167,142.16,142.12,3.5175]
[1723972439581,3.5167,142.16,142.13,7.6]
[1723972439879,3.5164,142.17,142.14,3.5171]
[1723972440084,3.5164,142.17,142.13,7.6]
[1723972440384,3.5164,142.17,142.14,0.05321645]
[1723972444884,7.01423702,142.18,142.14,3.57021645]
[1723972445084,3.5161,142.18,142.14,11.17021645]
[1723972446280,3.56553824,142.19,142.16,7.6]
[1723972446489,4.0834,142.21,142.16,7.6]
[1723972446681,3.85299259,142.2,142.16,7.6]
[1723972446881,0.25861054,142.19,142.17,0.04685518]
[1723972448177,6.96103298,142.2,142.17,0.04685518]
[1723972449183,3.5161,142.19,142.17,0.04685518]
[1723972449883,3.47534369,142.18,142.17,0.04685518]
[1723972451089,3.5161,142.19,142.17,0.04685518]
[1723972451586,3.57242819,142.19,142.17,0.04685518]
[1723972451987,7.6,142.2,142.17,0.04685518]
[1723972452187,3.5159,142.19,142.17,0.04685518]
[1723972452384,3.4786203,142.18,142.17,0.04685518]
[1723972452594,3.5159,142.19,142.17,0.04685518]
[1723972453095,7.05430854,142.19,142.17,0.04685518]
[1723972453893,3.53840854,142.19,142.17,0.04685518]
[1723972454194,3.4554084,142.19,142.17,0.04685518]
[1723972454695,3.5157,142.2,142.17,0.04685518]
[1723972454996,7.0371232,142.2,142.17,0.04685518]
[1723972455691,3.5214232,142.2,142.17,0.04685518]
[1723972455894,4.8792,142.21,142.17,0.04685518]
[1723972456394,0.25860263,142.2,142.17,0.04685518]
[1723972458692,8.39358879,142.21,142.17,7.64685518]
[1723972458892,8.39358879,142.21,142.17,11.16325518]
[1723972459098,3.5152,142.22,142.17,7.64685518]
[1723972459397,7.0426035,142.22,142.17,7.64685518]
[1723972460391,7.0426035,142.22,142.17,11.16325518]
[1723972460990,3.5154,142.21,142.17,11.16325518]
[1723972463793,3.5154,142.21,142.19,7.6]
[1723972466200,3.5152,142.22,142.19,7.6]
[1723972467500,3.5154,142.21,142.17,0.04685518]
[1723972467699,3.5154,142.21,142.18,7.6]
[1723972469501,7.6,142.28,142.2,7.6]
[1723972469797,7.6,142.26,142.23,0.04716339]
[1723972469994,3.5148,142.24,142.23,0.04716339]
[1723972470199,7.35860167,142.24,142.23,0.04716339]
[1723972470398,3.84380167,142.24,142.18,4.9157]
[1723972470702,3.5152,142.22,142.19,7.6]
[1723972471001,7.6,142.27,142.21,7.6]
[1723972471301,7.8585164,142.26,142.21,7.6]
[1723972471489,0.30510847,142.25,142.23,0.0536217]
[1723972472097,3.5148,142.24,142.23,0.0536217]
[1723972481001,3.5151,142.23,142.18,8.9997]
[1723972481201,3.5151,142.23,142.18,12.5157]
[1723972481906,0.04752443,142.22,142.19,0.04458761]
[1723972484502,3.56272443,142.22,142.19,0.04458761]
[1723972484809,3.52676271,142.21,142.19,0.04458761]
[1723972485202,3.56272443,142.22,142.19,0.04458761]
[1723972485601,3.5154,142.21,142.19,0.04458761]
[1723972485805,7.10475756,142.21,142.19,0.04458761]
[1723972486905,3.5154,142.21,142.19,0.04458761]
[1723972487910,3.56282443,142.22,142.2,7.6]
[1723972489207,0.04752443,142.22,142.2,7.6]
[1723972490514,78.00300878,142.31,142.21,7.6]
[1723972490813,3.48269896,142.29,142.24,7.6]
[1723972491013,0.25847019,142.28,142.24,7.6]
[1723972491215,3.77237019,142.28,142.24,7.6]
[1723972491404,3.5139,142.28,142.24,7.6]
[1723972491609,0.05352507,142.27,142.25,0.04594448]
[1723972491809,0.05352507,142.27,142.25,7.64594448]
[1723972495315,0.05352507,142.27,142.25,0.04594448]
[1723972497011,7.6,142.26,142.25,0.04594448]
[1723972497319,7.6,142.26,142.19,7.6]
[1723972497516,3.5148,142.24,142.19,11.1156]
[1723972498219,3.5146,142.25,142.2,11.16822225]
[1723972498408,0.05164815,142.23,142.2,11.16822225]
[1723972499721,0.05164815,142.23,142.21,3.5153]
[1723972502818,0.05164815,142.23,142.22,11.1151]
[1723972503018,1.3974,142.32,142.22,7.6]
[1723972503223,7.6,142.29,142.21,4.0795]
[1723972503425,3.514,142.27,142.23,11.1149]
[1723972504022,0.04933174,142.26,142.24,0.04866614]
[1723972505222,0.04933174,142.26,142.24,3.56326614]
[1723972508120,0.04933174,142.26,142.24,0.04866614]
[1723972509732,0.04933174,142.26,142.24,3.56316614]
[1723972510632,0.04933174,142.26,142.24,0.04866614]
[1723972511731,0.04933174,142.26,142.24,3.56326614]
[1723972520941,0.04933174,142.26,142.25,11.1144]
[1723972521326,0.04933174,142.26,142.25,3.5144]
[1723972521532,0.04933174,142.26,142.25,11.1144]
[1723972521928,57.97193894,142.3,142.26,3.514]
[1723972522336,54.45873894,142.3,142.27,3.5138]
[1723972522933,3.53756123,142.3,142.27,3.56764922]
[1723972524240,7.493,142.31,142.27,3.56764922]
[1723972524626,3.55525056,142.3,142.27,3.56764922]
[1723972524827,7.493,142.31,142.27,3.56764922]
[1723972525633,11.0194318,142.31,142.27,3.56764922]
[1723972528436,11.0194318,142.31,142.27,0.05384922]
[1723972528437,3.5132,142.3,142.27,0.05384922]
[1723972534042,3.5132,142.3,142.27,7.65384922]
[1723972536740,3.5132,142.3,142.27,11.16774922]
[1723972537038,11.0194318,142.31,142.28,7.6]
[1723972538144,7.5064318,142.31,142.28,7.6]
[1723972538745,18.6193318,142.31,142.27,0.05384922]
[1723972539843,15.1064318,142.31,142.27,3.56754922]
[1723972540545,1.3198,142.35,142.3,7.6]
[1723972540743,3.58794263,142.34,142.31,0.04990897]
[1723972541045,7.4921,142.35,142.31,7.64990897]
[1723972541247,10.966162,142.35,142.31,7.64990897]
[1723972541944,7.454062,142.35,142.33,7.6]
[1723972542249,3.474062,142.35,142.33,7.6]
[1723972543243,3.474062,142.35,142.32,7.6]
[1723972544341,3.5115,142.37,142.32,11.1127]
[1723972544551,11.03099701,142.37,142.32,11.1127]
[1723972544847,7.4915,142.37,142.32,11.1127]
[1723972545045,3.5117,142.36,142.32,11.1127]
[1723972545244,6.95808009,142.36,142.32,11.1127]
[1723972546047,6.95808009,142.36,142.31,11.16260897]
[1723972546242,3.512,142.35,142.31,3.56260897]
[1723972546445,11.04638009,142.36,142.31,0.04990897]
[1723972546646,7.6,142.36,142.31,0.04990897]
[1723972546846,3.5123,142.34,142.31,0.04990897]
[1723972548852,3.512,142.35,142.31,3.56280897]
[1723972549051,7.09260901,142.35,142.31,3.56280897]
[1723972549949,7.09260901,142.35,142.31,0.04990897]
[1723972550948,3.5122,142.34,142.31,0.04990897]
[1723972552349,7.6,142.33,142.31,0.04990897]
[1723972552849,11.1126,142.33,142.31,0.04990897]
[1723972553153,11.1126,142.33,142.26,7.8825]
[1723972553154,11.07765332,142.32,142.26,7.4165]
[1723972553559,3.5132,142.3,142.26,7.4165]
[1723972553950,7.6,142.32,142.26,7.4166]
[1723972554249,0.04975036,142.3,142.28,0.04733879]
[1723972556047,0.04975036,142.3,142.28,3.56093879]
[1723972556243,0.04975036,142.3,142.28,0.04733879]
[1723972556649,0.04975036,142.3,142.28,3.56093879]
[1723972556850,0.04975036,142.3,142.28,0.04733879]
[1723972558155,0.04975036,142.3,142.28,3.56093879]
[1723972559852,0.04975036,142.3,142.29,11.1134]
[1723972563258,3.5125,142.33,142.3,3.5131]
[1723972563853,3.5123,142.34,142.31,3.5128]
[1723972564160,3.98,142.36,142.31,11.1128]
[1723972564358,3.98,142.36,142.31,11.16617804]
[1723972564668,3.98,142.36,142.32,3.5126]
[1723972564864,3.98,142.36,142.32,11.1126]
[1723972565848,7.4919,142.36,142.32,11.1126]
[1723972566050,28.45757962,142.48,142.4,3.5107]
[1723972566252,0.25817941,142.43,142.4,11.1107]
[1723972566453,1.2866,142.44,142.4,7.6]
[1723972566660,5.3505,142.47,142.4,7.64788299]
[1723972566855,7.6,142.45,142.4,7.64788299]
[1723972567050,3.5096,142.45,142.4,7.64788299]
[1723972567251,8.79851018,142.47,142.42,7.6]
[1723972567558,3.5097,142.45,142.4,0.04788299]
[1723972567760,16.39851018,142.47,142.4,3.5106]
[1723972567955,7.6,142.45,142.41,0.04657541]
[1723972568255,8.79851018,142.47,142.41,0.04657541]
[1723972568460,7.6,142.44,142.41,0.04657541]
[1723972570352,1.2866,142.46,142.41,0.04657541]
[1723972570558,0.25812847,142.45,142.41,7.64657541]
[1723972570856,1.2866,142.46,142.41,7.64657541]
[1723972571053,1.2866,142.46,142.41,11.15697541]
[1723972571256,1.2866,142.46,142.41,7.64657541]
[1723972571658,4.7958,142.46,142.41,7.64657541]
[1723972572858,4.7958,142.46,142.41,0.04657541]
[1723972572859,3.5095,142.45,142.41,0.04657541]
[1723972573267,1.2866,142.46,142.41,0.04657541]
[1723972573461,12.396,142.46,142.41,0.04657541]
[1723972573665,3.44801018,142.47,142.43,7.6]
[1723972573963,3.42980378,142.49,142.43,7.6]
[1723972574263,0.258097,142.48,142.43,7.6]
[1723972574562,15.18393158,142.5,142.45,0.04822371]
[1723972574762,0.25807924,142.49,142.45,0.04822371]
[1723972575658,11.1089,142.48,142.45,0.04822371]
[1723972575968,7.6,142.47,142.45,0.04822371]
[1723972576164,11.1091,142.47,142.45,0.04822371]
[1723972577565,7.6,142.46,142.22,7.04]
[1723972577761,7.6,142.43,142.36,7.6]
[1723972577964,1.2688,142.45,142.34,7.6]
[1723972578169,7.6,142.4,142.35,3.5117]
[1723972578358,7.6,142.4,142.34,7.6]
[1723972578759,0.04867553,142.38,142.36,0.04555219]
[1723972579062,5.3597,142.44,142.37,7.6]
[1723972579269,8.9197,142.44,142.37,7.6]
[1723972579970,1.3197,142.44,142.36,22.92]
[1723972580164,1.3197,142.44,142.39,0.0520431]
[1723972580360,3.5102,142.42,142.39,0.0520431]
[1723972581761,3.51,142.43,142.39,0.0520431]
[1723972581957,22.92,142.47,142.39,3.5629431]
[1723972582366,22.92,142.47,142.4,3.5107]
[1723972582662,4.04,142.47,142.4,18.88]
[1723972582867,2.7495,142.5,142.42,18.88]
[1723972583169,3.82816908,142.49,142.42,18.88]
[1723972583365,0.25810112,142.48,142.42,18.88]
[1723972583559,3.5092,142.46,142.42,18.88]
[1723972583869,3.5092,142.46,142.44,0.05281811]
[1723972584271,3.5091,142.47,142.44,0.05281811]
[1723972584457,18.88,142.49,142.44,0.05281811]
[1723972584659,0.25810065,142.48,142.44,0.05281811]
[1723972585767,3.509,142.47,142.44,0.05281811]
[1723972587370,3.5088,142.48,142.44,0.05281811]
[1723972588569,4.04,142.5,142.44,18.93281811]
[1723972588773,0.25807058,142.49,142.44,18.93281811]
[1723972588962,0.25807058,142.52,142.44,18.88]
[1723972589163,3.5083,142.5,142.45,3.56068549]
[1723972589968,3.5085,142.49,142.45,0.05128549]
[1723972591369,22.36701081,142.52,142.45,0.05128549]
[1723972591567,0.25806052,142.51,142.45,0.05128549]
[1723972591765,0.25806052,142.51,142.46,18.88]
[1723972591971,24.2505,142.55,142.46,18.88]
[1723972592165,0.25801642,142.54,142.49,0.0471763]
[1723972592366,3.5077,142.53,142.49,0.0471763]
[1723972592566,22.46491143,142.53,142.49,0.0471763]
[1723972592766,3.5082,142.51,142.49,0.0471763]
[1723972593668,18.88,142.51,142.49,0.0471763]
[1723972593975,18.88,142.53,142.49,0.0471763]
[1723972594164,3.508,142.51,142.49,0.0471763]
[1723972594774,3.5082,142.5,142.49,0.0471763]
[1723972594968,22.9,142.5,142.42,18.88]
[1723972595370,3.509,142.47,142.42,3.5101]
[1723972595875,18.88,142.48,142.4,2.6197]
[1723972596068,0.04623675,142.46,142.43,0.05091236]
[1723972596270,7.57563675,142.46,142.43,0.05091236]
[1723972597273,4.06623675,142.46,142.43,0.05091236]
[1723972599877,4.06623675,142.46,142.43,3.56071236]
[1723972600171,4.06623675,142.46,142.43,0.05091236]
[1723972600366,0.04623675,142.46,142.43,0.05091236]
[1723972600565,0.04623675,142.46,142.44,3.5097]
[1723972601975,0.04623675,142.46,142.45,3.5095]
[1723972602179,4.2780394,142.52,142.45,18.88]
[1723972602475,19.1380394,142.51,142.42,22.9]
[1723972602675,3.5085,142.49,142.42,22.9]
[1723972603179,18.88,142.51,142.44,0.04991098]
[1723972603479,0.25805199,142.5,142.44,0.04991098]
[1723972603782,18.88,142.49,142.44,0.04991098]
[1723972605468,3.5089,142.48,142.44,0.04991098]
[1723972605972,3.5091,142.47,142.44,0.04991098]
[1723972606172,18.88,142.49,142.44,0.04991098]
[1723972606379,0.25807363,142.48,142.44,0.04991098]
[1723972606980,3.5091,142.47,142.44,0.04991098]
[1723972607373,18.88,142.47,142.44,0.04991098]
[1723972607576,24.68530354,142.53,142.35,8.4807]
[1723972607577,18.88,142.45,142.35,8.4807]
[1723972607882,18.88,142.45,142.39,3.5108]
[1723972608580,0.04983839,142.43,142.41,0.05259633]
[1723972610579,3.55983839,142.43,142.41,0.05259633]
[1723972611081,0.04983839,142.43,142.41,0.05259633]
[1723972611281,3.5102,142.42,142.41,0.05259633]
[1723972611878,3.5108,142.4,142.35,7.4525]
[1723972612683,3.5108,142.4,142.35,3.5118]
[1723972612887,3.5108,142.4,142.36,0.045939]
[1723972613092,0.04631006,142.39,142.36,0.045939]
[1723972614191,3.55731006,142.39,142.36,0.045939]
[1723972614487,0.04631006,142.39,142.36,0.045939]
[1723972615585,3.55721006,142.39,142.36,0.045939]
[1723972616287,4.54,142.45,142.38,18.88]
[1723972616686,3.5102,142.42,142.37,20.25]
[1723972617078,4.54,142.45,142.37,20.25]
[1723972617286,0.05012115,142.42,142.4,0.0476708]
[1723972620185,0.05012115,142.42,142.4,3.5583708]
[1723972620393,0.05012115,142.42,142.4,0.0476708]
[1723972623708,0.05012115,142.42,142.4,3.5582708]
[1723972624408,0.05012115,142.42,142.41,3.5104]
[1723972625402,0.05012115,142.42,142.4,3.5582708]
[1723972631009,0.05012115,142.42,142.4,0.0476708]
[1723972631404,18.93012115,142.42,142.4,0.0476708]
[1723972631712,3.5104,142.41,142.4,0.0476708]
[1723972632007,18.93012115,142.42,142.35,5.8479]
[1723972632207,3.5107,142.4,142.36,3.5116]
[1723972633005,3.5107,142.4,142.37,3.5114]
[1723972633310,3.56381347,142.4,142.37,3.55885306]
[1723972633510,3.56381347,142.4,142.37,0.04745306]
[1723972634408,3.511,142.39,142.37,0.04745306]
[1723972635209,3.5112,142.38,142.37,0.04745306]
[1723972636012,3.511,142.39,142.37,0.04745306]
[1723972636512,3.5112,142.38,142.37,0.04745306]
[1723972640806,3.511,142.39,142.37,0.04745306]
[1723972641007,4.57311347,142.4,142.37,0.04745306]
[1723972641416,8.08401347,142.4,142.37,0.04745306]
[1723972643912,0.05311347,142.4,142.37,3.55885306]
[1723972644613,0.05311347,142.4,142.37,0.04745306]
[1723972645318,18.88,142.39,142.37,0.04745306]
[1723972645618,18.93311347,142.4,142.37,0.04745306]
[1723972646215,3.5111,142.39,142.37,0.04745306]
[1723972648405,18.88,142.38,142.31,2.6104]
[1723972648811,3.5116,142.37,142.32,3.5125]
[1723972649015,23.4,142.38,142.32,3.5125]
[1723972649410,18.88,142.36,142.31,6.1233]
[1723972649627,18.92895373,142.36,142.34,0.051011]
[1723972650013,18.92895373,142.36,142.26,18.88]
[1723972650211,18.88,142.34,142.27,4.52]
[1723972650717,3.5125,142.33,142.29,3.5133]
[1723972651118,0.04450017,142.32,142.3,0.05119081]
[1723972651519,0.04450017,142.32,142.3,3.56439081]
[1723972652522,3.55720017,142.32,142.3,0.05119081]
[1723972652825,0.04450017,142.32,142.3,0.05119081]
[1723972655326,3.55720017,142.32,142.3,0.05119081]
[1723972656626,0.04450017,142.32,142.3,0.05119081]
[1723972657126,3.55720017,142.32,142.3,0.05119081]
[1723972659226,18.92450017,142.32,142.26,1.3431]
[1723972659730,3.5133,142.3,142.26,4.8571]
[1723972660229,3.5133,142.3,142.27,0.05115043]
[1723972660828,3.55730017,142.32,142.27,0.05115043]
[1723972661132,0.04450017,142.32,142.27,18.93115043]
[1723972661527,0.04450017,142.32,142.29,3.5134]
[1723972663826,0.04450017,142.32,142.31,3.5129]
[1723972665331,18.88,142.39,142.33,3.5123]
[1723972665527,4.52,142.38,142.33,3.5123]
[1723972665726,3.5116,142.37,142.33,3.5123]
[1723972665931,4.52,142.38,142.32,3.5125]
[1723972666437,3.5118,142.36,142.32,3.5125]
[1723972666735,3.56417099,142.36,142.34,0.05107151]
[1723972669630,0.05237099,142.36,142.34,0.05107151]
[1723972672232,0.05237099,142.36,142.34,3.56317151]
[1723972673131,0.05237099,142.36,142.34,0.05107151]
[1723972674835,3.56417099,142.36,142.34,0.05107151]
[1723972675337,18.88,142.35,142.34,0.05107151]
[1723972677344,22.3919,142.35,142.34,0.05107151]
[1723972678446,0.05237099,142.36,142.34,0.05107151]
[1723972680144,22.3919,142.35,142.3,3.513]
[1723972680745,3.5122,142.34,142.3,3.513]
[1723972680943,3.5122,142.34,142.29,3.5133]
[1723972681141,0.04701359,142.33,142.3,0.04927849]
[1723972682346,18.92701359,142.33,142.3,0.04927849]
[1723972682949,3.5128,142.32,142.3,0.04927849]
[1723972683144,18.88,142.31,142.27,3.5138]
[1723972683651,22.3929,142.31,142.27,3.5138]
[1723972684249,0.05092111,142.3,142.28,0.04786083]
[1723972685241,0.05092111,142.3,142.28,3.56146083]
[1723972685851,0.05092111,142.3,142.29,3.5134]
[1723972688758,0.05092111,142.3,142.28,3.56136083]
[1723972689764,0.05092111,142.3,142.28,0.04786083]
[1723972690461,3.56432111,142.3,142.28,0.04786083]
[1723972691366,3.5134,142.29,142.28,0.04786083]
[1723972691560,3.5134,142.29,142.25,3.5142]
[1723972691561,22.3934,142.29,142.25,3.5142]
[1723972691765,18.88,142.29,142.25,3.5142]
[1723972692172,3.5137,142.28,142.25,3.5142]
[1723972692669,3.5137,142.28,142.25,3.55882867]
[1723972693965,18.88,142.29,142.25,0.04462867]
[1723972694266,18.88,142.28,142.25,0.04462867]
[1723972694460,22.38900133,142.28,142.25,0.04462867]
[1723972694966,18.88,142.26,142.2,8.2615163]
[1723972695167,18.88,142.26,142.18,2.6507]
[1723972695168,23.36,142.26,142.18,2.6507]
[1723972695363,18.88,142.24,142.17,1.3844]
[1723972695570,18.88,142.24,142.18,3.516]
[1723972695773,18.88,142.22,142.17,1.3844]
[1723972696069,18.88,142.22,142.16,3.5164]
[1723972696070,3.5157,142.2,142.16,3.5164]
[1723972696267,22.3957,142.2,142.18,0.04843638]
[1723972697770,3.5159,142.19,142.18,0.04843638]
[1723972697967,18.88,142.2,142.18,0.04843638]
[1723972698367,22.3958,142.2,142.18,0.04843638]